bitfinex-derivatives/quotes_SOLF0:USTF0_20241215
["timestamp","ask_amount","ask_price","bid_price","bid_amount"]
[1734260123532,2.2848,218.89,218.87,5.14165698]
[1734260123730,2.2848,218.89,218.86,61.94643733]
[1734260123936,2.2848,218.89,218.87,5.14190485]
[1734260124139,2.2848,218.89,218.86,64.23153733]
[1734260124332,1.96,218.92,218.87,5.14190683]
[1734260124532,2.2847,218.9,218.86,61.94643733]
[1734260124838,2.2847,218.9,218.88,6.39080568]
[1734260125037,2.2846,218.91,218.88,6.39080568]
[1734260125234,2.2846,218.91,218.89,5.14172883]
[1734260125435,2.2846,218.91,218.88,6.39080568]
[1734260125641,2.2846,218.91,218.89,5.14152294]
[1734260125939,2.2846,218.91,218.9,5.14152294]
[1734260128438,2.2846,218.91,218.9,5.14123016]
[1734260131647,2.2846,218.91,218.9,5.14111436]
[1734260132634,2.2846,218.91,218.9,5.14126587]
[1734260133544,2.2846,218.91,218.88,6.39080568]
[1734260133743,2.2846,218.91,218.89,5.14145271]
[1734260133938,4.2445,218.92,218.9,6.39080568]
[1734260134146,4.2445,218.92,218.91,5.14125714]
[1734260134544,2.2845,218.92,218.91,5.14125714]
[1734260135440,2.2845,218.92,218.91,5.14114108]
[1734260137239,1.96,218.95,218.91,7.42564108]
[1734260137440,1.96,218.95,218.93,6.39080568]
[1734260138844,2.2843,218.94,218.93,6.39080568]
[1734260140647,2.2843,218.94,218.93,11.53024528]
[1734260141841,2.2843,218.94,218.93,6.39080568]
[1734260142047,2.2843,218.94,218.93,11.53016586]
[1734260142244,2.2843,218.94,218.93,6.39080568]
[1734260142548,2.2843,218.94,218.93,11.53016586]
[1734260144548,2.2843,218.94,218.74,21.8028394]
[1734260144549,6.39080568,218.94,218.74,21.8028394]
[1734260144848,6.39080568,218.89,218.82,6.39080568]
[1734260145143,6.39080568,218.87,218.8,6.39080568]
[1734260145343,6.39080568,218.83,218.76,1.4952]
[1734260145547,2.2862,218.76,218.74,6.39080568]
[1734260145742,1.96,218.8,218.74,6.39080568]
[1734260145948,1.96,218.8,218.76,6.39080568]
[1734260146149,1.96,218.8,218.78,6.39080568]
[1734260147850,2.2858,218.79,218.78,6.39080568]
[1734260148451,1.96,218.8,218.73,86.80567445]
[1734260148754,1.96,218.8,218.74,5.12451943]
[1734260148954,2.286,218.77,218.73,86.80567445]
[1734260149255,2.286,218.77,218.74,5.12456137]
[1734260149449,2.2863,218.74,218.73,86.80567445]
[1734260149651,1.96,218.76,218.65,4.3624]
[1734260149851,1.96,218.76,218.66,5.12318789]
[1734260150049,1.96,218.76,218.67,5.12325508]
[1734260150347,1.96,218.76,218.65,6.3224]
[1734260150746,1.96,218.76,218.66,2.2872]
[1734260151151,2.2866,218.72,218.66,2.2872]
[1734260151452,2.2866,218.72,218.68,5.47180342]
[1734260152259,2.2867,218.71,218.65,6.3224]
[1734260153052,2.2867,218.71,218.65,8.6096]
[1734260153349,2.2868,218.7,218.6,1.96]
[1734260153551,2.2868,218.7,218.61,5.10515754]
[1734260153756,2.2868,218.7,218.6,1.96]
[1734260153757,2.2868,218.7,218.62,5.10515754]
[1734260154053,2.2868,218.7,218.6,1.96]
[1734260154246,2.2868,218.7,218.61,5.10517305]
[1734260154450,2.2869,218.69,218.63,2.2874]
[1734260154649,1.96,218.71,218.6,1.96]
[1734260154847,1.96,218.71,218.58,4.3725]
[1734260154848,1.96,218.71,218.62,5.40632325]
[1734260155455,2.2873,218.65,218.62,5.40632325]
[1734260155651,2.2873,218.65,218.58,4.3725]
[1734260155853,1.96,218.71,218.58,4.3725]
[1734260156046,2.2874,218.64,218.59,2.2879]
[1734260156253,1.96,218.65,218.57,135.64796546]
[1734260156947,8.32802006,218.65,218.59,6.36802006]
[1734260157146,2.2875,218.64,218.58,2.288]
[1734260157355,8.32802006,218.65,218.59,6.36802006]
[1734260158154,10.61542006,218.65,218.59,6.36802006]
[1734260158354,8.32802006,218.65,218.59,6.36802006]
[1734260159653,2.2874,218.64,218.59,2.2879]
[1734260160755,8.32802006,218.65,218.59,2.2879]
[1734260160955,10.61532006,218.65,218.59,2.2879]
[1734260164055,10.61532006,218.65,218.58,5.54886479]
[1734260164255,10.61532006,218.65,218.6,2.2878]
[1734260165864,8.65552006,218.63,218.58,2.288]
[1734260166064,6.36802006,218.61,218.57,135.64796546]
[1734260166264,1.96,218.65,218.57,135.64796546]
[1734260166467,6.36802006,218.61,218.57,135.64796546]
[1734260167362,6.36802006,218.62,218.59,2.2879]
[1734260169271,6.36802006,218.62,218.57,142.01598552]
[1734260169475,6.36802006,218.62,218.6,2.2878]
[1734260171472,6.36802006,218.62,218.57,142.01598552]
[1734260172381,6.36802006,218.62,218.59,2.2879]
[1734260172878,6.36802006,218.62,218.57,137.93596546]
[1734260172879,2.2877,218.61,218.57,137.93596546]
[1734260173179,6.36802006,218.62,218.57,137.93596546]
[1734260174076,6.36802006,218.6,218.57,137.93596546]
[1734260175882,8.65602006,218.58,218.55,9.25076664]
[1734260176278,6.36802006,218.56,218.42,2.9754]
[1734260176477,6.36802006,218.56,218.48,6.36802006]
[1734260176478,8.65652006,218.54,218.48,6.36802006]
[1734260176785,6.36802006,218.54,218.49,5.56695141]
[1734260176978,6.36802006,218.52,218.44,6.36802006]
[1734260177284,6.36802006,218.5,218.43,1.4338]
[1734260177584,6.36802006,218.5,218.48,2.289]
[1734260178085,8.32802006,218.52,218.48,2.289]
[1734260178675,10.61662006,218.52,218.48,2.289]
[1734260179386,10.61662006,218.52,218.47,5.51564111]
[1734260179687,10.61662006,218.52,218.47,7.80474111]
[1734260180987,10.61662006,218.52,218.48,2.289]
[1734260181379,2.9675,218.61,218.51,2.2887]
[1734260181681,1.96,218.6,218.5,6.36802006]
[1734260181886,2.2883,218.56,218.51,2.2887]
[1734260182080,1.96,218.6,218.52,6.36802006]
[1734260182284,6.36802006,218.58,218.52,6.36802006]
[1734260182501,8.65612006,218.58,218.53,2.2885]
[1734260183690,6.36802006,218.56,218.53,2.2885]
[1734260183891,6.36802006,218.56,218.52,2.2886]
[1734260186495,8.65622006,218.56,218.52,2.2886]
[1734260187194,6.36802006,218.54,218.48,6.36802006]
[1734260187396,6.36802006,218.52,218.47,5.51564111]
[1734260187595,6.36802006,218.52,218.48,5.08642895]
[1734260187796,6.36802006,218.52,218.47,5.51564111]
[1734260187996,6.36802006,218.52,218.48,2.289]
[1734260189200,6.36802006,218.52,218.49,2.2889]
[1734260189500,6.36802006,218.52,218.5,5.10210468]
[1734260189701,6.36802006,218.52,218.49,2.2889]
[1734260189998,6.36802006,218.52,218.5,5.10199654]
[1734260190190,6.36802006,218.52,218.49,2.2889]
[1734260190388,6.36802006,218.52,218.5,5.10293148]
[1734260190592,6.36802006,218.52,218.49,2.2889]
[1734260191295,6.36802006,218.52,218.5,5.1048011]
[1734260191496,6.36802006,218.52,218.49,2.2889]
[1734260191693,6.36802006,218.52,218.5,5.1048011]
[1734260191897,6.36802006,218.52,218.49,2.2889]
[1734260192098,6.36802006,218.52,218.5,5.10480385]
[1734260192302,6.36802006,218.52,218.49,2.2889]
[1734260192499,6.36802006,218.52,218.5,5.10767199]
[1734260192802,6.36802006,218.52,218.49,2.2889]
[1734260192998,6.36802006,218.52,218.5,5.10767199]
[1734260193199,6.36802006,218.52,218.49,2.2889]
[1734260193403,6.36802006,218.52,218.5,5.10756851]
[1734260193600,6.36802006,218.52,218.49,2.2889]
[1734260193800,8.65642006,218.54,218.5,5.11123817]
[1734260194006,8.65642006,218.54,218.49,2.2889]
[1734260194309,8.65642006,218.54,218.5,5.11114298]
[1734260194495,8.65642006,218.54,218.51,5.11114298]
[1734260194695,8.65642006,218.54,218.47,5.51564111]
[1734260194904,8.65642006,218.54,218.5,2.2888]
[1734260195101,8.65642006,218.54,218.51,5.11502812]
[1734260195296,8.65642006,218.54,218.5,2.2888]
[1734260195498,8.65642006,218.54,218.51,5.11568028]
[1734260195700,8.65642006,218.54,218.5,2.2888]
[1734260195899,8.65642006,218.54,218.51,5.11567617]
[1734260196208,8.65642006,218.54,218.5,2.2888]
[1734260196402,8.65642006,218.54,218.51,5.11737706]
[1734260196608,8.65642006,218.54,218.5,2.2888]
[1734260196808,8.65642006,218.54,218.51,5.1173743]
[1734260197007,8.65642006,218.54,218.5,2.2888]
[1734260197303,6.36802006,218.54,218.51,5.1174198]
[1734260197614,6.36802006,218.54,218.52,5.1174198]
[1734260197802,6.36802006,218.54,218.51,2.2887]
[1734260198103,6.36802006,218.54,218.52,5.11949071]
[1734260198307,6.36802006,218.54,218.51,2.2887]
[1734260198507,6.36802006,218.54,218.52,5.12176184]
[1734260198708,6.36802006,218.54,218.51,2.2887]
[1734260198902,6.36802006,218.54,218.52,5.12176184]
[1734260199108,6.36802006,218.54,218.51,2.2887]
[1734260199408,6.36802006,218.54,218.52,5.12421384]
[1734260199609,6.36802006,218.54,218.51,2.2887]
[1734260200008,6.36802006,218.54,218.52,5.12421384]
[1734260200205,6.36802006,218.54,218.51,2.2887]
[1734260203211,6.36802006,218.52,218.51,2.2887]
[1734260204610,6.36802006,218.54,218.51,2.2887]
[1734260205709,4.2483,218.55,218.51,2.2887]
[1734260207113,1.96,218.55,218.49,5.40303084]
[1734260207316,1.98,218.56,218.49,5.40303084]
[1734260207914,1.98,218.56,218.5,5.12954117]
[1734260208110,1.98,218.56,218.49,5.40303084]
[1734260208307,1.98,218.56,218.5,5.13050188]
[1734260208508,1.98,218.56,218.54,2.2884]
[1734260214217,1.98,218.56,218.49,5.40303084]
[1734260214422,1.98,218.56,218.53,2.2885]
[1734260214822,1.98,218.56,218.49,5.40303084]
[1734260214823,1.98,218.56,218.54,2.2884]
[1734260215623,2.288,218.58,218.54,2.2884]
[1734260215821,2.2881,218.57,218.54,2.2884]
[1734260216125,4.2681,218.57,218.54,2.2884]
[1734260217824,4.2681,218.57,218.53,2.2885]
[1734260218920,4.2681,218.57,218.54,5.14490446]
[1734260219124,4.2681,218.57,218.53,2.2885]
[1734260219329,4.2681,218.57,218.54,5.14632705]
[1734260219625,4.2681,218.57,218.53,2.2885]
[1734260219925,2.2881,218.57,218.54,5.1463377]
[1734260220118,2.2881,218.57,218.53,2.2885]
[1734260220323,2.2882,218.56,218.54,5.14811081]
[1734260220522,2.2882,218.56,218.53,2.2885]
[1734260220726,2.2882,218.56,218.54,5.14814166]
[1734260220927,2.2882,218.56,218.52,2.2886]
[1734260221226,2.2882,218.56,218.53,5.14813605]
[1734260221429,2.2882,218.56,218.54,5.14813605]
[1734260221622,2.2882,218.56,218.52,2.2886]
[1734260221925,2.2882,218.56,218.53,5.14955885]
[1734260222125,2.2882,218.56,218.54,5.14955885]
[1734260222324,2.2882,218.56,218.52,2.2886]
[1734260222530,2.2882,218.56,218.53,5.14955755]
[1734260222723,2.2882,218.56,218.54,5.14955755]
[1734260222919,2.2882,218.56,218.52,2.2886]
[1734260223119,2.2882,218.56,218.53,5.14956822]
[1734260223329,2.2882,218.56,218.54,5.14956822]
[1734260223627,2.2882,218.56,218.52,2.2886]
[1734260223825,2.2882,218.56,218.53,5.15023307]
[1734260224026,2.2882,218.56,218.54,5.15023307]
[1734260224327,2.2882,218.56,218.52,2.2886]
[1734260224627,2.2882,218.56,218.53,5.15105083]
[1734260224824,2.2882,218.56,218.52,2.2886]
[1734260225027,2.2882,218.56,218.53,5.15105083]
[1734260225226,2.2883,218.55,218.54,5.1516996]
[1734260228122,2.2885,218.54,218.5,2.2888]
[1734260228327,2.2885,218.54,218.51,5.15220733]
[1734260228627,2.2885,218.54,218.52,5.15220733]
[1734260228827,2.2885,218.54,218.51,2.2887]
[1734260228828,2.2885,218.54,218.53,5.15220733]
[1734260231231,2.2882,218.56,218.53,5.15220733]
[1734260231426,2.2882,218.56,218.54,5.15220733]
[1734260231626,2.2882,218.56,218.55,5.15220733]
[1734260234934,2.2882,218.56,218.52,2.2885]
[1734260235134,2.2882,218.56,218.53,5.15167115]
[1734260235428,2.2882,218.56,218.54,5.15167115]
[1734260235633,2.2882,218.56,218.55,5.15167115]
[1734260237925,2.2882,218.56,218.52,2.2885]
[1734260238130,2.2882,218.56,218.53,5.15209701]
[1734260238337,2.2882,218.56,218.54,5.15209701]
[1734260238634,2.2882,218.56,218.52,2.2885]
[1734260238933,2.2882,218.56,218.53,5.1523617]
[1734260239235,2.2882,218.56,218.52,2.2885]
[1734260239236,2.2882,218.56,218.54,5.1523617]
[1734260239535,2.2882,218.56,218.52,2.2885]
[1734260239732,2.2882,218.56,218.53,5.15270329]
[1734260239935,2.2882,218.56,218.54,5.15270329]
[1734260240237,2.2882,218.56,218.52,2.2885]
[1734260240434,2.2882,218.56,218.53,5.15309754]
[1734260240635,2.2882,218.56,218.54,5.15309754]
[1734260240833,2.2882,218.56,218.52,2.2885]
[1734260241034,2.2882,218.56,218.53,5.15308324]
[1734260241336,2.2882,218.56,218.54,5.15308324]
[1734260241536,2.2882,218.56,218.52,2.2885]
[1734260241738,2.2882,218.56,218.53,5.15342413]
[1734260242040,2.2882,218.56,218.54,5.15342413]
[1734260242234,2.2882,218.56,218.52,2.2885]
[1734260242430,2.2882,218.56,218.53,5.15379105]
[1734260242636,2.2882,218.56,218.54,5.15379105]
[1734260242833,2.2882,218.56,218.52,2.2885]
[1734260243040,2.2882,218.56,218.53,5.15377561]
[1734260243236,2.2882,218.56,218.54,5.15377561]
[1734260243437,2.2882,218.56,218.52,2.2885]
[1734260243738,2.2882,218.56,218.53,5.15402931]
[1734260243933,2.2882,218.56,218.54,5.15402931]
[1734260244140,2.2882,218.56,218.55,5.15422933]
[1734260248943,75.07716168,218.6,218.57,2.288]
[1734260249145,1.4149,218.69,218.58,5.15539445]
[1734260249343,1.98,218.68,218.59,5.15415516]
[1734260249542,1.98,218.68,218.6,5.15415516]
[1734260249852,1.98,218.68,218.51,1.98]
[1734260250051,1.98,218.68,218.52,5.15411501]
[1734260250256,1.98,218.68,218.53,5.15411501]
[1734260250450,1.98,218.68,218.54,5.15411501]
[1734260250651,2.2876,218.62,218.58,2.2879]
[1734260251051,2.2876,218.62,218.59,5.15186399]
[1734260251252,2.2876,218.62,218.6,5.15186399]
[1734260251454,2.2876,218.62,218.58,2.2879]
[1734260251455,2.2876,218.62,218.61,5.15186399]
[1734260251652,2.2875,218.63,218.61,5.15186399]
[1734260251850,2.2875,218.63,218.59,2.2879]
[1734260252050,2.2875,218.63,218.6,5.14971553]
[1734260252352,2.2875,218.63,218.61,5.14971553]
[1734260252554,2.2875,218.63,218.59,2.2879]
[1734260252746,2.2875,218.63,218.6,5.1480317]
[1734260253052,2.2875,218.63,218.61,5.1480317]
[1734260253252,2.2875,218.63,218.59,2.2879]
[1734260253458,2.2875,218.63,218.6,5.14635004]
[1734260253753,2.2874,218.64,218.6,2.2878]
[1734260254149,1.98,218.66,218.6,2.2878]
[1734260254150,2.2875,218.63,218.6,2.2878]
[1734260256255,2.2875,218.63,218.55,1.98]
[1734260256453,2.2875,218.63,218.59,2.2879]
[1734260266964,2.2875,218.63,218.61,5.62437407]
[1734260270763,1.479,218.75,218.61,5.62437407]
[1734260270966,1.96,218.74,218.61,5.62437407]
[1734260271167,1.96,218.74,218.64,2.2873]
[1734260271366,2.287,218.68,218.61,5.62437407]
[1734260271870,2.287,218.68,218.63,2.2874]
[1734260272363,1.96,218.71,218.61,5.62437407]
[1734260272559,1.96,218.72,218.62,5.13554503]
[1734260272760,1.96,218.72,218.61,5.62437407]
[1734260274067,2.2869,218.69,218.61,5.62437407]
[1734260274273,1.96,218.68,218.61,5.62437407]
[1734260274475,1.96,218.67,218.61,5.62437407]
[1734260275067,2.2875,218.64,218.61,5.62437407]
[1734260277971,2.2875,218.64,218.61,7.91207407]
[1734260284380,2.2875,218.63,218.61,5.62437407]
[1734260284680,1.96,218.67,218.61,5.62437407]
[1734260285076,1.96,218.67,218.57,1.4365]
[1734260285275,1.96,218.67,218.51,2.9997]
[1734260285482,2.2883,218.55,218.51,2.9997]
[1734260285680,2.2883,218.55,218.52,5.14129043]
[1734260285882,2.2883,218.55,218.53,5.14129043]
[1734260286082,2.2883,218.55,218.49,1.4401]
[1734260286280,2.2882,218.56,218.51,2.2887]
[1734260286478,2.2882,218.56,218.52,5.1415295]
[1734260286777,2.2882,218.56,218.53,5.1415295]
[1734260286984,2.2882,218.56,218.51,2.2887]
[1734260287280,2.2882,218.56,218.53,5.42996457]
[1734260288283,2.2881,218.57,218.53,5.42996457]
[1734260289485,2.2882,218.56,218.53,5.42996457]
[1734260289686,2.2882,218.56,218.54,5.14251904]
[1734260289888,2.2882,218.56,218.53,5.42996457]
[1734260290179,2.2882,218.56,218.54,5.14251903]
[1734260290380,2.2882,218.56,218.53,5.42996457]
[1734260291090,2.2882,218.56,218.54,5.14280166]
[1734260291278,2.2882,218.56,218.53,5.42996457]
[1734260291587,1.96,218.58,218.54,5.14305338]
[1734260291787,2.2881,218.57,218.53,5.42996457]
[1734260291988,2.2881,218.57,218.54,5.14305338]
[1734260292187,2.2881,218.57,218.53,5.42996457]
[1734260292489,2.2881,218.57,218.54,5.14330405]
[1734260292689,2.2881,218.57,218.53,5.42996457]
[1734260292889,2.2881,218.57,218.54,5.14332609]
[1734260293087,2.2881,218.57,218.53,5.42996457]
[1734260293286,2.2881,218.57,218.54,5.1434456]
[1734260293489,2.2881,218.57,218.53,5.42996457]
[1734260293783,2.2881,218.57,218.54,5.1434456]
[1734260293988,2.2881,218.57,218.53,5.42996457]
[1734260294188,2.2881,218.57,218.53,7.71846457]
[1734260294487,2.2881,218.57,218.54,5.14276397]
[1734260294688,2.2881,218.57,218.53,7.71846457]
[1734260294889,2.2881,218.57,218.54,5.14276121]
[1734260295190,2.2881,218.57,218.53,7.71846457]
[1734260296095,4.248,218.58,218.54,2.2884]
[1734260300197,2.288,218.58,218.54,2.2884]
[1734260300397,2.288,218.58,218.55,2.2883]
[1734260300593,2.288,218.58,218.53,5.42996457]
[1734260301692,2.288,218.58,218.54,2.2884]
[1734260303402,2.2881,218.57,218.54,2.2884]
[1734260304493,2.2883,218.56,218.43,2.2895]
[1734260304699,3.4745,218.55,218.37,1.5473]
[1734260305493,2.2895,218.44,218.39,5.43226041]
[1734260305799,1.96,218.44,218.39,5.43226041]
[1734260306596,1.96,218.44,218.39,7.72226041]
[1734260306799,1.96,218.44,218.34,1.96]
[1734260307099,1.96,218.44,218.35,5.12663601]
[1734260307299,1.96,218.44,218.36,5.12663601]
[1734260307601,1.96,218.44,218.37,5.42689486]
[1734260308096,2.2897,218.42,218.37,7.71699486]
[1734260308500,1.96,218.44,218.32,1.4949]
[1734260308700,1.96,218.44,218.33,5.11924248]
[1734260308901,1.96,218.44,218.35,2.2904]
[1734260308902,2.2899,218.41,218.35,2.2904]
[1734260309500,5.56985257,218.5,218.32,1.4949]
[1734260309501,1.96,218.4,218.32,1.4949]
[1734260309694,1.96,218.4,218.31,2.44552844]
[1734260309896,2.2903,218.37,218.31,2.44552844]
[1734260310094,1.96,218.4,218.32,5.5275151]
[1734260310293,1.96,218.4,218.31,0.91612844]
[1734260311096,2.2902,218.38,218.31,0.91612844]
[1734260311306,1.96,218.4,218.31,0.91612844]
[1734260311695,5.56985257,218.5,218.31,0.91612844]
[1734260311906,1.96,218.49,218.31,0.91612844]
[1734260313002,2.2899,218.41,218.34,2.2904]
[1734260313305,4.2499,218.41,218.34,2.2904]
[1734260313506,2.29,218.4,218.34,2.2904]
[1734260314508,2.2901,218.38,218.32,2.2907]
[1734260314703,1.96,218.41,218.31,0.91612844]
[1734260316803,2.2901,218.39,218.33,2.2905]
[1734260318209,2.2901,218.38,218.33,2.2905]
[1734260318608,1.96,218.41,218.31,3.20682844]
[1734260319407,2.2904,218.36,218.31,0.91612844]
[1734260319610,1.96,218.41,218.31,3.20692844]
[1734260319911,2.2905,218.35,218.31,0.91612844]
[1734260320112,1.96,218.41,218.31,0.91612844]
[1734260320610,2.2907,218.33,218.31,0.91612844]
[1734260320812,5.56985257,218.5,218.23,1.4176]
[1734260320813,1.96,218.37,218.23,1.4176]
[1734260321001,4.4137,218.4,218.24,1.96]
[1734260321002,1.96,218.36,218.24,1.96]
[1734260321207,1.96,218.36,218.28,5.46693168]
[1734260322313,2.2906,218.34,218.28,5.46693168]
[1734260322610,1.96,218.36,218.28,7.75813168]
[1734260323711,2.2906,218.33,218.28,7.75813168]
[1734260324512,1.96,218.36,218.28,5.46693168]
[1734260325817,2.2909,218.31,218.28,5.46693168]
[1734260326212,2.2909,218.31,218.26,2.2914]
[1734260329009,2.2909,218.31,218.27,5.54600538]
[1734260329812,2.2909,218.31,218.27,7.83730538]
[1734260330019,2.2908,218.32,218.27,7.83730538]
[1734260330209,1.96,218.36,218.27,7.83730538]
[1734260332415,2.2909,218.31,218.27,7.83730538]
[1734260332718,1.98,218.35,218.25,4.2714]
[1734260333017,1.98,218.35,218.23,1.4176]
[1734260333018,1.98,218.35,218.11,4.5859]
[1734260333217,1.98,218.35,218.18,108.32460918]
[1734260333620,2.2914,218.27,218.21,2.2918]
[1734260333820,1.98,218.29,218.21,2.2918]
[1734260334318,2.2915,218.25,218.2,2.292]
[1734260334513,2.2915,218.25,218.18,108.32460918]
[1734260335318,2.2915,218.25,218.2,2.292]
[1734260336116,2.2915,218.25,218.21,5.46873452]
[1734260336318,2.2915,218.25,218.21,7.76063452]
[1734260336720,2.2915,218.25,218.21,5.46873452]
[1734260336921,2.2915,218.25,218.18,108.32460918]
[1734260338223,2.2915,218.25,218.2,5.44578295]
[1734260338524,2.2915,218.25,218.2,7.73768295]
[1734260338723,2.2915,218.25,218.2,5.44578295]
[1734260339820,2.2915,218.25,218.21,2.2918]
[1734260340523,2.2914,218.26,218.21,2.2918]
[1734260342126,2.2914,218.26,218.2,5.44578295]
[1734260342424,2.2914,218.26,218.22,2.2918]
[1734260343227,2.2914,218.26,218.2,5.44578295]
[1734260343228,2.2913,218.27,218.21,2.2919]
[1734260343423,1.98,218.29,218.21,2.2919]
[1734260343919,2.2913,218.27,218.21,2.2919]
[1734260344123,1.98,218.29,218.21,2.2919]
[1734260345029,2.2915,218.26,218.21,2.2919]
[1734260345930,2.2915,218.26,218.22,2.2918]
[1734260346527,1.98,218.29,218.2,5.44578295]
[1734260346733,2.2915,218.25,218.2,5.44578295]
[1734260347028,1.98,218.29,218.2,5.44578295]
[1734260348129,2.2915,218.26,218.22,2.2918]
[1734260348632,2.2915,218.26,218.2,5.44578295]
[1734260348633,5.42663164,218.39,218.2,5.44578295]
[1734260349025,1.98,218.38,218.21,5.11530518]
[1734260349229,1.98,218.37,218.22,7.09530518]
[1734260349429,2.2911,218.29,218.26,2.2913]
[1734260352137,2.2905,218.34,218.28,2.2911]
[1734260352325,1.98,218.33,218.28,2.2911]
[1734260352732,4.2707,218.33,218.29,5.1284811]
[1734260352923,4.4137,218.4,218.23,4.3863]
[1734260353127,4.4137,218.4,218.24,5.12841779]
[1734260353324,2.2906,218.34,218.25,5.12841779]
[1734260353632,2.2906,218.34,218.26,7.10841779]
[1734260353828,2.2906,218.34,218.27,5.12841779]
[1734260354026,2.2906,218.34,218.28,5.12841779]
[1734260354231,2.2907,218.33,218.29,7.41941779]
[1734260354535,1.98,218.36,218.24,1.98]
[1734260354735,1.98,218.36,218.25,5.13415067]
[1734260354931,2.2909,218.31,218.26,2.2913]
[1734260355234,1.98,218.36,218.27,5.13379115]
[1734260355535,2.2909,218.31,218.26,2.2913]
[1734260355731,2.2909,218.31,218.27,5.13377373]
[1734260355933,2.2909,218.31,218.26,2.2913]
[1734260356234,2.2909,218.31,218.27,5.13374179]
[1734260356426,2.2909,218.31,218.26,2.2913]
[1734260356625,2.2909,218.31,218.27,5.13424344]
[1734260356836,2.2909,218.31,218.26,2.2913]
[1734260357133,2.2909,218.31,218.27,5.13424068]
[1734260357434,2.2909,218.31,218.26,2.2913]
[1734260357636,2.2909,218.31,218.27,5.13568497]
[1734260357831,2.2909,218.31,218.25,1.98]
[1734260358032,2.2909,218.31,218.27,2.2912]
[1734260358934,2.2909,218.31,218.28,5.13721896]
[1734260359228,2.2909,218.31,218.27,2.2912]
[1734260359229,2.2909,218.31,218.26,7.7564379]
[1734260359430,1.98,218.36,218.26,5.4651379]
[1734260360232,2.2911,218.29,218.26,5.4651379]
[1734260360738,2.2911,218.29,218.27,5.13988244]
[1734260361037,1.98,218.36,218.26,5.4651379]
[1734260361234,2.291,218.3,218.26,5.4651379]
[1734260364136,2.2906,218.33,218.26,5.4651379]
[1734260364332,1.98,218.36,218.26,5.4651379]
[1734260364838,2.2911,218.29,218.26,5.4651379]
[1734260365535,2.2911,218.29,218.27,5.14823952]
[1734260365731,2.2911,218.29,218.26,5.4651379]
[1734260365938,2.2911,218.29,218.27,5.14817435]
[1734260366139,2.2911,218.29,218.26,5.4651379]
[1734260366337,2.2911,218.29,218.27,5.14835683]
[1734260366641,2.2911,218.29,218.26,5.4651379]
[1734260366840,2.2911,218.29,218.27,5.14835682]
[1734260367040,2.2911,218.29,218.26,5.4651379]
[1734260367341,2.2911,218.29,218.27,5.14845748]
[1734260367538,2.2911,218.29,218.26,5.4651379]
[1734260367735,2.2911,218.29,218.27,5.14900814]
[1734260367937,2.2911,218.29,218.26,5.4651379]
[1734260368133,2.2911,218.29,218.27,5.14899266]
[1734260368339,2.291,218.3,218.26,7.7565379]
[1734260368742,2.291,218.3,218.27,5.14970573]
[1734260369035,2.291,218.3,218.28,5.14970573]
[1734260369241,2.291,218.3,218.26,7.7565379]
[1734260369640,1.98,218.36,218.26,5.4651379]
[1734260369940,2.2911,218.29,218.26,5.4651379]
[1734260370145,1.98,218.36,218.27,5.15056988]
[1734260370343,1.98,218.36,218.26,5.4651379]
[1734260370540,2.291,218.3,218.27,5.15038462]
[1734260370741,2.291,218.3,218.28,5.15031066]
[1734260370940,2.291,218.3,218.26,5.4651379]
[1734260371139,2.291,218.3,218.27,5.15021765]
[1734260371442,2.2908,218.32,218.28,5.15021765]
[1734260371645,1.98,218.36,218.29,5.15021765]
[1734260371843,1.98,218.36,218.26,5.4651379]
[1734260372042,1.98,218.36,218.27,7.44098683]
[1734260372241,1.98,218.36,218.28,5.14978683]
[1734260372441,1.98,218.36,218.29,5.14978683]
[1734260372741,1.98,218.36,218.27,2.2912]
[1734260372942,1.98,218.36,218.28,5.14939198]
[1734260373243,1.98,218.36,218.29,5.14939198]
[1734260373438,2.2909,218.31,218.27,2.2912]
[1734260373643,2.2909,218.31,218.28,5.14906566]